{"text_format":"1","workbook":"xlsx","n_sheets":3,"sheets":["Candidate's Details","Set up portal account","Examination Fees"],"not_rendered":{"charts":0,"images":1,"macros":1,"external_links":0,"defined_names":0,"comments":0,"pivot_tables":0},"unopened":[],"bounds":{"document_bytes":16777216,"sheet_cells":100000,"rows_first":2000,"rows_last":500,"rows_between":2000,"halvings":0,"cell_chars":16384,"cell_head_chars":4096},"cells_cut":0,"cells_raw":0,"read":"whole","date_system":"1900"}

{"sheet":"Candidate's Details","index":0,"n_rows":54,"n_cols":12,"rows_kept":54,"cut":false,"hidden":false,"merged":[[39,5,39,6],[40,5,40,6],[41,5,41,6],[42,5,42,6],[43,5,43,6],[39,3,39,4],[40,3,40,4],[41,3,41,4],[42,3,42,4],[43,3,43,4],[34,5,34,6],[35,5,35,6],[36,5,36,6],[37,3,37,4],[38,3,38,4],[37,5,37,6],[38,5,38,6],[29,5,29,6],[30,5,30,6],[31,5,31,6],[32,5,32,6],[33,5,33,6],[24,5,24,6],[25,5,25,6],[26,5,26,6],[27,5,27,6],[28,5,28,6],[32,3,32,4],[33,3,33,4],[34,3,34,4],[35,3,35,4],[36,3,36,4],[1,3,1,5],[3,1,3,2],[5,4,5,5],[7,3,7,4],[15,3,15,6],[1,1,1,2],[5,1,5,3],[7,1,7,2],[10,1,18,2],[10,3,10,6],[11,3,11,6],[12,3,12,6],[13,3,13,6],[14,3,14,6],[46,2,46,8],[19,1,19,6],[20,1,20,6],[21,1,21,6],[9,1,9,6],[16,3,16,6],[17,3,17,6],[18,3,18,6],[24,3,24,4],[25,3,25,4],[26,3,26,4],[27,3,27,4],[28,3,28,4],[29,3,29,4],[30,3,30,4],[31,3,31,4]]}
[]
[null,"Name of Financial Institution (FI):"]
[]
[null,"UEN of FI:"]
[]
[null,"Name and contact details (email address & phone no.) of FI's contact person:"]
[]
[null,"Online Exam Date and Time:"]
[]
[null,"Examination Modules:"]
[null,"Capital Markets and Financial Advisory Services (CMFAS) Examinations",null,"Module 1A - Rules & Regulations for Dealing in Securities (SGX-ST Members)"]
[null,null,null,"Module 1B - Rules & Regulations for Dealing in Securities (Non-SGX-St Members)"]
[null,null,null,"Module 2A - Rules & Regulaions for Tradng in Futures Contracts (SGX-DT Members)"]
[null,null,null,"Module 3 - Rules & Regulations for Fund Management"]
[null,null,null,"Module 4A - Rules & Regulations for Advising on Corporate Finance"]
[null,null,null,"Module 4B - Rules & Regulations for Advising on Corporate Finance (Solely Debt Securities) "]
[null,null,null,"Module 6 - Securities Products & Analysis"]
[null,null,null,"Mdule 6A - Securities & Futures Product Knowledge"]
[null,null,null,"Module 10 - Rules & Regulations for REIT Management, with Product Knowledge & Analysis "]
[null,"Financial Markets Regulatory Practices (FMRP)"]
[null,"Client Advisory Competency Standards - Legislation, Regulation & Industry Codes of Practice  (CACS 1) "]
[null,"Client Advisory Competency Standards - Industry and Product Knowledge Assessment Paper 2 (CACS 2) "]
[]
[]
[null,"No.","Candidate's  NRIC/ Passport No. ","Candidate's Full Name ( As per NRIC/ Passport)  ",null,"Candidate's individual email address (Same email as stated in the indivdual's portal account)",null,"Exam Module","Is candidate taking the selected exam module on 1st attempt (Y/N)?","Country where candidate is based in","Exam Fee Payable (See \"Important Notes\" below). Please enter the exact fee payable including GST for each candidate based on the selected exam module)","Name of Billing Organisation (if IBF corporate member rate is applied, please ensure the billing organisation is an IBF member)"]
[]
[null,null," ",null,null,null,null," "]
[]
[]
[]
[]
[]
[]
[]
[]
[]
[]
[]
[]
[]
[]
[]
[]
[]
[]
[null,"Declaration"]
[null,null,"I have read and understood the IBF Online Examinations Rules and Regulations, IBF's Personal Data Protection Policy, and the General Data Protection Regulation (GDPR) Privacy Policy (if you are an EU resident). I agree to abide by these rules and regulations, and the data protection/privacy policies. "]
[null,null," "]
[null,"Important Notes:"]
[null,"1. Fields highlighted in yellow are mandatory fields"]
[null,"2. Ensure all candidates have set up and activated their IBF Portal Accounts. The Instructions for Setting Up IBF Portal Account can be found in the \"Set up portal account\" tab"]
[null,"3. Exam fees will be collected from financial institutions. Please refer to the applicable exam fees for the relevant exam modules set out in the \"Examination Fees\" tab."]
[null,"4. Please password protect this Form before submitting to IBF via email at exams@ibf.org.sg with the subject header \"Online Examination Registration\"."]
[null,"5. Please send the password to IBF via email at exams@ibf.org.sg in a separate email with the subject header \"Online Examination Registration\"."]

{"sheet":"Set up portal account","index":1,"n_rows":1,"n_cols":1,"rows_kept":1,"cut":false,"hidden":false,"merged":[]}
["Instruction for setting up IBF Portal Account:"]

{"sheet":"Examination Fees","index":2,"n_rows":18,"n_cols":5,"rows_kept":18,"cut":false,"hidden":false,"merged":[[16,5,16,7],[17,5,17,7],[10,5,10,7],[11,5,11,7],[12,5,12,7],[13,5,13,7],[14,5,14,7],[15,5,15,7],[9,5,9,7],[2,0,5,0],[2,1,2,4],[2,7,2,8],[3,1,3,2],[3,3,3,4],[3,7,3,8],[4,1,5,1],[4,2,5,2],[4,3,5,3],[4,4,5,4],[4,7,4,8],[5,5,5,7],[6,5,6,7],[7,5,7,7],[8,5,8,7]]}
["Examination Fees for Online Examination with effect from September 2022"]
[]
["Module","Revised Fee (before GST)"]
[null,"Member",null,"Non-Member"]
[null,"1st attempt","Subsequent attempt","1st attempt","Subsequent attempt"]
[]
["CMFAS M1A",{"$f":"600*1.08","v":648},{"$f":"520*1.08","v":561.6},{"$f":"680*1.08","v":734.40000000000009},{"$f":"600*1.08","v":648}]
["CMFAS M1B",{"$f":"600*1.08","v":648},{"$f":"520*1.08","v":561.6},{"$f":"680*1.08","v":734.40000000000009},{"$f":"600*1.08","v":648}]
["CMFAS M2A",{"$f":"720*1.08","v":777.6},{"$f":"640*1.08","v":691.2},{"$f":"800*1.08","v":864},{"$f":"720*1.08","v":777.6}]
["CMFAS M3",{"$f":"720*1.08","v":777.6},{"$f":"640*1.08","v":691.2},{"$f":"800*1.08","v":864},{"$f":"720*1.08","v":777.6}]
["CMFAS M4A",{"$f":"720*1.08","v":777.6},{"$f":"640*1.08","v":691.2},{"$f":"800*1.08","v":864},{"$f":"720*1.08","v":777.6}]
["CMFAS M4B",{"$f":"720*1.08","v":777.6},{"$f":"640*1.08","v":691.2},{"$f":"800*1.08","v":864},{"$f":"720*1.08","v":777.6}]
["CMFAS M6",{"$f":"600*1.08","v":648},{"$f":"520*1.08","v":561.6},{"$f":"680*1.08","v":734.40000000000009},{"$f":"600*1.08","v":648}]
["CMFAS M6A",{"$f":"600*1.08","v":648},{"$f":"520*1.08","v":561.6},{"$f":"680*1.08","v":734.40000000000009},{"$f":"600*1.08","v":648}]
["CMFAS M10",{"$f":"1000*1.08","v":1080},{"$f":"840*1.08","v":907.2},{"$f":"1160*1.08","v":1252.8000000000002},{"$f":"1000*1.08","v":1080}]
["CACS Paper 1",{"$f":"1320*1.08","v":1425.6000000000001},{"$f":"1240*1.08","v":1339.2},{"$f":"1600*1.08","v":1728},{"$f":"1520*1.08","v":1641.6000000000001}]
["CACS Paper 2",{"$f":"1320*1.08","v":1425.6000000000001},{"$f":"1240*1.08","v":1339.2},{"$f":"1600*1.08","v":1728},{"$f":"1520*1.08","v":1641.6000000000001}]
["FMRP",{"$f":"600*1.08","v":648},{"$f":"520*1.08","v":561.6},{"$f":"720*1.08","v":777.6},{"$f":"640*1.08","v":691.2}]